[Event "Titled Tuesday Blitz May 17 Early 2022"]
[White "Seo, Jung Min"]
[Black "Oparin, Grigoriy"]
[WhiteFideId "1734687"]
[BlackFideId "24125890"]
[WhiteElo "2401"]
[BlackElo "2665"]
[Result "0-1"]
[Round "04"]
[TimeControl "180+1"]
[Date "2022.05.17"]
[WhiteClock "0:00:54"]
[BlackClock "0:01:01"]

1. d4 {[%clk 0:03:00]}  Nf6 {[%clk 0:02:59]} 2. c4 {[%clk 0:03:01]}  c6 {[%clk 0:03:00]} 3. Nf3 {[%clk 0:03:00]}  d5 {[%clk 0:03:00]} 4. e3 {[%clk 0:03:01]}  e6 {[%clk 0:03:00]} 5. Nbd2 {[%clk 0:03:00]}  Nbd7 {[%clk 0:02:58]} 6. Bd3 {[%clk 0:03:00]}  a6 {[%clk 0:02:51]} 7. O-O {[%clk 0:02:58]}  b5 {[%clk 0:02:51]} 8. cxd5 {[%clk 0:02:55]}  cxd5 {[%clk 0:02:51]} 9. e4 {[%clk 0:02:55]}  dxe4 {[%clk 0:02:50]} 10. Nxe4 {[%clk 0:02:55]}  Bb7 {[%clk 0:02:50]} 11. Qe2 {[%clk 0:02:53]}  Be7 {[%clk 0:02:46]} 12. a4 {[%clk 0:02:52]}  b4 {[%clk 0:02:43]} 13. a5 {[%clk 0:02:50]}  O-O {[%clk 0:02:42]} 14. Bd2 {[%clk 0:02:50]}  Nxe4 {[%clk 0:02:39]} 15. Bxe4 {[%clk 0:02:50]}  Bxe4 {[%clk 0:02:39]} 16. Qxe4 {[%clk 0:02:50]}  Nf6 {[%clk 0:02:40]} 17. Qc6 {[%clk 0:02:47]}  Qb8 {[%clk 0:02:38]} 18. Rfc1 {[%clk 0:02:46]}  Rc8 {[%clk 0:02:37]} 19. Qa4 {[%clk 0:02:45]}  Qb7 {[%clk 0:02:37]} 20. h3 {[%clk 0:02:40]}  Bd6 {[%clk 0:02:32]} 21. Ne1 {[%clk 0:02:26]}  h6 {[%clk 0:02:20]} 22. Nf3 {[%clk 0:02:25]}  Nd5 {[%clk 0:02:14]} 23. Rxc8+ {[%clk 0:02:20]}  Rxc8 {[%clk 0:02:13]} 24. Rc1 {[%clk 0:02:21]}  Kf8 {[%clk 0:02:04]} 25. Rxc8+ {[%clk 0:02:20]}  Qxc8 {[%clk 0:02:05]} 26. g3 {[%clk 0:02:08]}  f6 {[%clk 0:02:02]} 27. Kg2 {[%clk 0:02:08]}  Kf7 {[%clk 0:02:02]} 28. h4 {[%clk 0:02:06]}  h5 {[%clk 0:02:02]} 29. Ne1 {[%clk 0:02:04]}  Qc4 {[%clk 0:01:56]} 30. Qd7+ {[%clk 0:02:04]}  Be7 {[%clk 0:01:56]} 31. Nf3 {[%clk 0:02:00]}  Qc2 {[%clk 0:01:28]} 32. Qb7 {[%clk 0:01:58]}  Qxb2 {[%clk 0:01:26]} 33. Qxa6 {[%clk 0:01:57]}  Qa2 {[%clk 0:01:18]} 34. Qb5 {[%clk 0:01:44]}  b3 {[%clk 0:01:19]} 35. Bc1 {[%clk 0:01:22]}  Qc2 {[%clk 0:01:13]} 36. a6 {[%clk 0:01:16]}  Qxc1 {[%clk 0:01:12]} 37. Qxb3 {[%clk 0:01:12]}  Qc7 {[%clk 0:01:05]} 38. Qb7 {[%clk 0:00:53]}  Qxb7 {[%clk 0:01:04]} 39. axb7 {[%clk 0:00:53]}  Bd6 {[%clk 0:01:04]} 40. Nd2 {[%clk 0:00:53]}  Bb8 {[%clk 0:01:02]} 41. Nc4 {[%clk 0:00:54]}  Ke7 {[%clk 0:01:01]} 0-1


[Site "https://www.chess.com"]

[Event "Titled Tuesday Blitz May 17 Early 2022"]
[White "Solovchuk, Oleksiy"]
[Black "Xu, Yi"]
[WhiteFideId "14115220"]
[BlackFideId "8605564"]
[WhiteElo "2305"]
[BlackElo "2471"]
[Result "0-1"]
[Round "04"]
[TimeControl "180+1"]
[Date "2022.05.17"]
[WhiteClock "0:00:16"]
[BlackClock "0:00:23"]

1. e4 {[%clk 0:03:00]}  c5 {[%clk 0:02:59]} 2. Nf3 {[%clk 0:03:00]}  d6 {[%clk 0:02:59]} 3. d4 {[%clk 0:02:58]}  cxd4 {[%clk 0:03:00]} 4. Nxd4 {[%clk 0:02:58]}  Nf6 {[%clk 0:02:59]} 5. Nc3 {[%clk 0:02:57]}  a6 {[%clk 0:03:00]} 6. f3 {[%clk 0:02:56]}  e5 {[%clk 0:03:00]} 7. Nb3 {[%clk 0:02:56]}  Be7 {[%clk 0:02:59]} 8. Be3 {[%clk 0:02:51]}  Be6 {[%clk 0:02:59]} 9. Nd5 {[%clk 0:02:48]}  Nxd5 {[%clk 0:02:44]} 10. exd5 {[%clk 0:02:49]}  Bf5 {[%clk 0:02:45]} 11. Qd2 {[%clk 0:02:42]}  Nd7 {[%clk 0:02:43]} 12. a4 {[%clk 0:02:39]}  O-O {[%clk 0:02:41]} 13. a5 {[%clk 0:02:38]}  Rc8 {[%clk 0:02:40]} 14. c4 {[%clk 0:02:38]}  e4 {[%clk 0:02:31]} 15. f4 {[%clk 0:02:36]}  Nc5 {[%clk 0:02:24]} 16. Nxc5 {[%clk 0:02:32]}  dxc5 {[%clk 0:02:24]} 17. Be2 {[%clk 0:02:31]}  Bh4+ {[%clk 0:02:19]} 18. g3 {[%clk 0:02:30]}  Bf6 {[%clk 0:02:19]} 19. O-O {[%clk 0:02:27]}  Qd7 {[%clk 0:02:17]} 20. Rab1 {[%clk 0:02:23]}  Bh3 {[%clk 0:02:04]} 21. Rfd1 {[%clk 0:02:17]}  Qf5 {[%clk 0:01:56]} 22. b4 {[%clk 0:01:55]}  cxb4 {[%clk 0:01:55]} 23. Rxb4 {[%clk 0:01:55]}  h5 {[%clk 0:01:46]} 24. Rxb7 {[%clk 0:01:47]}  h4 {[%clk 0:01:46]} 25. c5 {[%clk 0:01:42]}  Qg6 {[%clk 0:01:30]} 26. Kf2 {[%clk 0:01:41]}  Bg4 {[%clk 0:01:10]} 27. Rb6 {[%clk 0:01:37]}  Qh5 {[%clk 0:01:05]} 28. Bxg4 {[%clk 0:01:18]}  Qxg4 {[%clk 0:01:03]} 29. Rg1 {[%clk 0:00:55]}  Rxc5 {[%clk 0:00:54]} 30. Bxc5 {[%clk 0:00:49]}  Qf3+ {[%clk 0:00:53]} 31. Ke1 {[%clk 0:00:46]}  Bc3 {[%clk 0:00:54]} 32. Rb2 {[%clk 0:00:16]}  Bxd2+ {[%clk 0:00:50]} 33. Rxd2 {[%clk 0:00:17]}  Rc8 {[%clk 0:00:48]} 34. Rf1 {[%clk 0:00:16]}  Qb3 {[%clk 0:00:38]} 35. d6 {[%clk 0:00:15]}  Rxc5 {[%clk 0:00:25]} 36. d7 {[%clk 0:00:16]}  Rc1+ {[%clk 0:00:26]} 37. Ke2 {[%clk 0:00:15]}  Qc4+ {[%clk 0:00:26]} 38. Ke3 {[%clk 0:00:15]}  Rc3+ {[%clk 0:00:23]} 39. Kf2 {[%clk 0:00:15]}  Rf3+ {[%clk 0:00:23]} 40. Kg2 {[%clk 0:00:16]}  Qxf1# {[%clk 0:00:23]} 0-1


[Site "https://www.chess.com"]

[Event "Titled Tuesday Blitz May 17 Early 2022"]
[White "Visakh N R"]
[Black "Tarigan, Gilbert Elroy"]
[WhiteFideId "25012223"]
[BlackFideId "7108133"]
[WhiteElo "2448"]
[BlackElo "1908"]
[Result "1-0"]
[Round "04"]
[TimeControl "180+1"]
[Date "2022.05.17"]
[WhiteClock "0:00:54"]
[BlackClock "0:00:09"]

1. c4 {[%clk 0:03:00]}  c6 {[%clk 0:02:54]} 2. Nf3 {[%clk 0:02:54]}  d5 {[%clk 0:02:55]} 3. b3 {[%clk 0:02:54]}  Nf6 {[%clk 0:02:55]} 4. Bb2 {[%clk 0:02:55]}  Bg4 {[%clk 0:02:56]} 5. e3 {[%clk 0:02:55]}  e6 {[%clk 0:02:55]} 6. Be2 {[%clk 0:02:55]}  Nbd7 {[%clk 0:02:55]} 7. O-O {[%clk 0:02:56]}  Bd6 {[%clk 0:02:55]} 8. cxd5 {[%clk 0:02:55]}  cxd5 {[%clk 0:02:51]} 9. Nc3 {[%clk 0:02:55]}  O-O {[%clk 0:02:50]} 10. Nd4 {[%clk 0:02:52]}  Bxe2 {[%clk 0:02:49]} 11. Qxe2 {[%clk 0:02:53]}  a6 {[%clk 0:02:47]} 12. Rfc1 {[%clk 0:02:53]}  Rc8 {[%clk 0:02:47]} 13. f4 {[%clk 0:02:52]}  Qe7 {[%clk 0:02:41]} 14. Rc2 {[%clk 0:02:44]}  Bc5 {[%clk 0:02:34]} 15. Rac1 {[%clk 0:02:31]}  Bxd4 {[%clk 0:02:34]} 16. exd4 {[%clk 0:02:32]}  Qd6 {[%clk 0:02:19]} 17. Ne4 {[%clk 0:02:23]}  Qb8 {[%clk 0:02:17]} 18. Nc5 {[%clk 0:02:22]}  Nxc5 {[%clk 0:02:08]} 19. dxc5 {[%clk 0:02:21]}  Qxf4 {[%clk 0:02:05]} 20. Rc3 {[%clk 0:02:19]}  Ne4 {[%clk 0:01:57]} 21. R3c2 {[%clk 0:02:06]}  h6 {[%clk 0:01:35]} 22. d3 {[%clk 0:02:04]}  Ng5 {[%clk 0:01:31]} 23. Rf1 {[%clk 0:02:01]}  Qb4 {[%clk 0:01:27]} 24. a3 {[%clk 0:01:12]}  Qxb3 {[%clk 0:01:24]} 25. h4 {[%clk 0:01:11]}  Nh7 {[%clk 0:01:20]} 26. Rf3 {[%clk 0:01:11]}  Rc6 {[%clk 0:01:07]} 27. Be5 {[%clk 0:01:00]}  f6 {[%clk 0:00:57]} 28. Bd6 {[%clk 0:00:59]}  Re8 {[%clk 0:00:57]} 29. Rb2 {[%clk 0:00:59]}  Qxa3 {[%clk 0:00:54]} 30. Rxb7 {[%clk 0:00:59]}  Qa1+ {[%clk 0:00:45]} 31. Kh2 {[%clk 0:00:57]}  Qa3 {[%clk 0:00:12]} 32. Rg3 {[%clk 0:00:54]}  g5 {[%clk 0:00:09]} 33. Qh5 {[%clk 0:00:54]} 1-0


[Site "https://www.chess.com"]

[Event "Titled Tuesday Blitz May 17 Early 2022"]
[White "Vovk, Orest"]
[Black "Xiong, Jeffery"]
[WhiteFideId "14113490"]
[BlackFideId "2047640"]
[WhiteElo "2203"]
[BlackElo "2727"]
[Result "0-1"]
[Round "04"]
[TimeControl "180+1"]
[Date "2022.05.17"]
[WhiteClock "0:01:18"]
[BlackClock "0:02:20"]

1. h4 {[%clk 0:03:00]}  e5 {[%clk 0:02:57]} 2. h5 {[%clk 0:03:01]}  d5 {[%clk 0:02:56]} 3. h6 {[%clk 0:03:01]}  Nxh6 {[%clk 0:02:56]} 4. d4 {[%clk 0:03:01]}  Ng4 {[%clk 0:02:55]} 5. f3 {[%clk 0:03:01]}  Nh6 {[%clk 0:02:49]} 6. Bxh6 {[%clk 0:02:59]}  gxh6 {[%clk 0:02:50]} 7. dxe5 {[%clk 0:02:59]}  Nc6 {[%clk 0:02:51]} 8. e4 {[%clk 0:02:55]}  Qg5 {[%clk 0:02:43]} 9. Nc3 {[%clk 0:02:29]}  Qg3+ {[%clk 0:02:41]} 10. Ke2 {[%clk 0:02:26]}  Bc5 {[%clk 0:02:38]} 11. Qe1 {[%clk 0:02:12]}  Qxe5 {[%clk 0:02:35]} 12. Nxd5 {[%clk 0:02:07]}  Be6 {[%clk 0:02:35]} 13. Ne3 {[%clk 0:01:32]}  O-O-O {[%clk 0:02:24]} 14. c3 {[%clk 0:01:26]}  Bxe3 {[%clk 0:02:21]} 15. Kxe3 {[%clk 0:01:24]}  Qc5+ {[%clk 0:02:21]} 16. Ke2 {[%clk 0:01:18]}  Bc4# {[%clk 0:02:20]} 0-1


[Site "https://www.chess.com"]

[Event "Titled Tuesday Blitz May 17 Early 2022"]
[White "Yang, Kaiqi"]
[Black "Antipov, Mikhail Al."]
[WhiteFideId "8604398"]
[BlackFideId "4107012"]
[WhiteElo "2373"]
[BlackElo "2512"]
[Result "0-1"]
[Round "04"]
[TimeControl "180+1"]
[Date "2022.05.17"]
[WhiteClock "0:00:02"]
[BlackClock "0:00:02"]

1. d4 {[%clk 0:03:00]}  Nf6 {[%clk 0:02:58]} 2. c4 {[%clk 0:03:00]}  g6 {[%clk 0:02:57]} 3. h4 {[%clk 0:03:00]}  Nc6 {[%clk 0:02:55]} 4. Nc3 {[%clk 0:02:53]}  d6 {[%clk 0:02:53]} 5. e4 {[%clk 0:02:46]}  Bg7 {[%clk 0:02:48]} 6. Nge2 {[%clk 0:02:35]}  O-O {[%clk 0:02:42]} 7. f3 {[%clk 0:02:29]}  e5 {[%clk 0:02:11]} 8. d5 {[%clk 0:02:27]}  Nd4 {[%clk 0:02:09]} 9. Be3 {[%clk 0:02:27]}  c5 {[%clk 0:02:07]} 10. dxc6 {[%clk 0:02:26]}  bxc6 {[%clk 0:02:08]} 11. Nxd4 {[%clk 0:02:24]}  exd4 {[%clk 0:02:09]} 12. Bxd4 {[%clk 0:02:25]}  d5 {[%clk 0:01:30]} 13. cxd5 {[%clk 0:02:04]}  cxd5 {[%clk 0:01:29]} 14. e5 {[%clk 0:01:55]}  Nh5 {[%clk 0:01:24]} 15. Qb3 {[%clk 0:01:36]}  Ng3 {[%clk 0:01:17]} 16. Rg1 {[%clk 0:01:25]}  Be6 {[%clk 0:00:58]} 17. O-O-O {[%clk 0:01:23]}  Rb8 {[%clk 0:00:50]} 18. Qa4 {[%clk 0:01:23]}  Qxh4 {[%clk 0:00:48]} 19. Bc5 {[%clk 0:01:05]}  Qh6+ {[%clk 0:00:34]} 20. Kb1 {[%clk 0:00:50]}  Rfc8 {[%clk 0:00:34]} 21. Bd6 {[%clk 0:00:40]}  Qe3 {[%clk 0:00:13]} 22. Bb5 {[%clk 0:00:35]}  Rb6 {[%clk 0:00:07]} 23. Rge1 {[%clk 0:00:34]}  Qf2 {[%clk 0:00:07]} 24. Ka1 {[%clk 0:00:16]}  a6 {[%clk 0:00:04]} 25. Be2 {[%clk 0:00:16]}  Rxc3 {[%clk 0:00:03]} 26. bxc3 {[%clk 0:00:16]}  h5 {[%clk 0:00:02]} 27. Qc2 {[%clk 0:00:13]}  Bf5 {[%clk 0:00:01]} 28. Qd2 {[%clk 0:00:09]}  Rxd6 {[%clk 0:00:02]} 29. exd6 {[%clk 0:00:04]}  Qc5 {[%clk 0:00:02]} 30. Rc1 {[%clk 0:00:04]}  d4 {[%clk 0:00:02]} 31. Qb2 {[%clk 0:00:01]}  dxc3 {[%clk 0:00:02]} 32. Qc2 {[%clk 0:00:01]}  Bxc2 {[%clk 0:00:02]} 33. Rxc2 {[%clk 0:00:02]}  Qxd6 {[%clk 0:00:02]} 34. Rec1 {[%clk 0:00:02]}  Qd2 {[%clk 0:00:02]} 0-1


[Site "https://www.chess.com"]

[Event "Titled Tuesday Blitz May 17 Early 2022"]
[White "Zhigalko, Sergei"]
[Black "Khripachenko, Alexander"]
[WhiteFideId "13502956"]
[BlackFideId "54184975"]
[WhiteElo "2662"]
[BlackElo "2138"]
[Result "1-0"]
[Round "04"]
[TimeControl "180+1"]
[Date "2022.05.17"]
[WhiteClock "0:00:13"]
[BlackClock "0:00:04"]

1. e4 {[%clk 0:03:00]}  e5 {[%clk 0:03:00]} 2. Nf3 {[%clk 0:02:59]}  Nf6 {[%clk 0:03:00]} 3. d4 {[%clk 0:02:59]}  Nxe4 {[%clk 0:02:58]} 4. Bd3 {[%clk 0:02:58]}  Nc6 {[%clk 0:02:59]} 5. d5 {[%clk 0:02:58]}  Nc5 {[%clk 0:02:58]} 6. dxc6 {[%clk 0:02:58]}  e4 {[%clk 0:02:58]} 7. cxb7 {[%clk 0:02:57]}  Bxb7 {[%clk 0:02:59]} 8. Be2 {[%clk 0:02:58]}  exf3 {[%clk 0:02:58]} 9. Bxf3 {[%clk 0:02:59]}  Bxf3 {[%clk 0:02:56]} 10. Qxf3 {[%clk 0:02:59]}  Be7 {[%clk 0:02:56]} 11. O-O {[%clk 0:02:59]}  O-O {[%clk 0:02:57]} 12. Rd1 {[%clk 0:02:51]}  c6 {[%clk 0:02:57]} 13. c4 {[%clk 0:02:44]}  Rb8 {[%clk 0:02:56]} 14. Nc3 {[%clk 0:02:44]}  Ne6 {[%clk 0:02:38]} 15. b3 {[%clk 0:02:37]}  Bf6 {[%clk 0:02:38]} 16. Bb2 {[%clk 0:02:32]}  Qa5 {[%clk 0:02:35]} 17. Na4 {[%clk 0:01:46]}  Bxb2 {[%clk 0:02:24]} 18. Nxb2 {[%clk 0:01:47]}  Rfd8 {[%clk 0:02:23]} 19. Nd3 {[%clk 0:01:41]}  d5 {[%clk 0:00:58]} 20. Ne5 {[%clk 0:01:40]}  Qc7 {[%clk 0:00:56]} 21. Re1 {[%clk 0:01:41]}  Rbc8 {[%clk 0:00:50]} 22. Rad1 {[%clk 0:01:35]}  d4 {[%clk 0:00:47]} 23. h4 {[%clk 0:01:28]}  c5 {[%clk 0:00:45]} 24. Re4 {[%clk 0:01:18]}  Re8 {[%clk 0:00:45]} 25. Rde1 {[%clk 0:01:15]}  Nf8 {[%clk 0:00:24]} 26. h5 {[%clk 0:00:53]}  h6 {[%clk 0:00:24]} 27. Qg4 {[%clk 0:00:46]}  Re6 {[%clk 0:00:18]} 28. Nxf7 {[%clk 0:00:22]}  Rxe4 {[%clk 0:00:08]} 29. Nxh6+ {[%clk 0:00:23]}  Kh7 {[%clk 0:00:08]} 30. Qf5+ {[%clk 0:00:13]}  Kxh6 {[%clk 0:00:07]} 31. Rxe4 {[%clk 0:00:14]}  Qd6 {[%clk 0:00:04]} 32. Qxc8 {[%clk 0:00:13]} 1-0


[Site "https://www.chess.com"]

[Event "Titled Tuesday Blitz May 17 Early 2022"]
[White "Bachmann, Axel"]
[Black "Samunenkov, Ihor"]
[WhiteFideId "3700488"]
[BlackFideId "14187086"]
[WhiteElo "2587"]
[BlackElo "2409"]
[Result "1-0"]
[Round "05"]
[TimeControl "180+1"]
[Date "2022.05.17"]
[WhiteClock "0:00:52"]
[BlackClock "0:00:21"]

1. e4 {[%clk 0:02:59]}  c6 {[%clk 0:02:01]} 2. d4 {[%clk 0:02:56]}  d5 {[%clk 0:02:02]} 3. e5 {[%clk 0:02:57]}  c5 {[%clk 0:02:00]} 4. Nf3 {[%clk 0:02:54]}  cxd4 {[%clk 0:02:00]} 5. Qxd4 {[%clk 0:02:55]}  Nc6 {[%clk 0:01:57]} 6. Qf4 {[%clk 0:02:56]}  e6 {[%clk 0:01:55]} 7. Bd3 {[%clk 0:02:52]}  Bc5 {[%clk 0:01:49]} 8. Qg3 {[%clk 0:02:51]}  Nge7 {[%clk 0:01:42]} 9. Nc3 {[%clk 0:02:37]}  Ng6 {[%clk 0:01:37]} 10. h4 {[%clk 0:02:27]}  Nd4 {[%clk 0:01:06]} 11. h5 {[%clk 0:02:20]}  Ne7 {[%clk 0:01:05]} 12. Nxd4 {[%clk 0:02:03]}  Bxd4 {[%clk 0:01:06]} 13. Nb5 {[%clk 0:02:04]}  Bc5 {[%clk 0:01:05]} 14. Qxg7 {[%clk 0:01:40]}  Rg8 {[%clk 0:01:04]} 15. Qxh7 {[%clk 0:01:40]}  Rxg2 {[%clk 0:01:05]} 16. Be3 {[%clk 0:01:40]}  d4 {[%clk 0:00:38]} 17. Bd2 {[%clk 0:01:01]}  a6 {[%clk 0:00:25]} 18. Nd6+ {[%clk 0:01:00]}  Bxd6 {[%clk 0:00:26]} 19. exd6 {[%clk 0:01:00]}  Qxd6 {[%clk 0:00:27]} 20. O-O-O {[%clk 0:00:59]}  Bd7 {[%clk 0:00:26]} 21. Be4 {[%clk 0:00:54]}  Rxf2 {[%clk 0:00:21]} 22. Qh8+ {[%clk 0:00:52]} 1-0


[Site "https://www.chess.com"]

[Event "Titled Tuesday Blitz May 17 Early 2022"]
[White "Donchenko, Alexander"]
[Black "Dubov, Daniil"]
[WhiteFideId "24603295"]
[BlackFideId "24126055"]
[WhiteElo "2572"]
[BlackElo "2791"]
[Result "1/2-1/2"]
[Round "05"]
[TimeControl "180+1"]
[Date "2022.05.17"]
[WhiteClock "0:01:41"]
[BlackClock "0:01:30"]

1. Nf3 {[%clk 0:03:00]}  d5 {[%clk 0:02:59]} 2. d4 {[%clk 0:03:01]}  Nf6 {[%clk 0:02:58]} 3. c4 {[%clk 0:03:01]}  c6 {[%clk 0:02:58]} 4. e3 {[%clk 0:03:01]}  Bf5 {[%clk 0:02:57]} 5. Nc3 {[%clk 0:03:00]}  e6 {[%clk 0:02:57]} 6. Nh4 {[%clk 0:03:00]}  Bg6 {[%clk 0:02:58]} 7. Bd2 {[%clk 0:02:55]}  Nbd7 {[%clk 0:02:54]} 8. Be2 {[%clk 0:02:54]}  Be7 {[%clk 0:02:52]} 9. Qb3 {[%clk 0:02:53]}  Qc7 {[%clk 0:02:51]} 10. Rc1 {[%clk 0:02:51]}  Qb6 {[%clk 0:02:51]} 11. Nxg6 {[%clk 0:02:43]}  hxg6 {[%clk 0:02:50]} 12. h3 {[%clk 0:02:41]}  Rd8 {[%clk 0:02:39]} 13. O-O {[%clk 0:02:39]}  Qxb3 {[%clk 0:02:21]} 14. axb3 {[%clk 0:02:39]}  O-O {[%clk 0:02:21]} 15. Rfd1 {[%clk 0:02:36]}  a6 {[%clk 0:02:21]} 16. Be1 {[%clk 0:02:35]}  Rc8 {[%clk 0:02:20]} 17. Bf3 {[%clk 0:02:33]}  Rfd8 {[%clk 0:02:19]} 18. h4 {[%clk 0:02:29]}  Ne8 {[%clk 0:02:18]} 19. g3 {[%clk 0:02:28]}  Nd6 {[%clk 0:02:17]} 20. Be2 {[%clk 0:02:24]}  Nf5 {[%clk 0:02:17]} 21. Kg2 {[%clk 0:02:21]}  Re8 {[%clk 0:02:14]} 22. Rc2 {[%clk 0:02:11]}  Nf6 {[%clk 0:02:11]} 23. Na4 {[%clk 0:02:06]}  Ne4 {[%clk 0:02:03]} 24. Rcc1 {[%clk 0:02:00]}  Rb8 {[%clk 0:01:50]} 25. Nc3 {[%clk 0:01:58]}  Nf6 {[%clk 0:01:41]} 26. Ra1 {[%clk 0:01:48]}  Red8 {[%clk 0:01:40]} 27. Bd3 {[%clk 0:01:41]}  Nd6 {[%clk 0:01:30]} 1/2-1/2


[Site "https://www.chess.com"]

[Event "Titled Tuesday Blitz May 17 Early 2022"]
[White "Indjic, Aleksandar"]
[Black "Gallego Alcaraz, Andres Felipe"]
[WhiteFideId "911925"]
[BlackFideId "4402669"]
[WhiteElo "2616"]
[BlackElo "2340"]
[Result "1-0"]
[Round "05"]
[TimeControl "180+1"]
[Date "2022.05.17"]
[WhiteClock "0:01:07"]
[BlackClock "0:00:20"]

1. e4 {[%clk 0:03:00]}  c5 {[%clk 0:02:58]} 2. f4 {[%clk 0:03:00]}  Nc6 {[%clk 0:02:57]} 3. Bb5 {[%clk 0:02:56]}  Nd4 {[%clk 0:02:57]} 4. Bc4 {[%clk 0:02:56]}  e6 {[%clk 0:02:55]} 5. Nf3 {[%clk 0:02:54]}  a6 {[%clk 0:02:48]} 6. Nxd4 {[%clk 0:02:53]}  cxd4 {[%clk 0:02:48]} 7. Qe2 {[%clk 0:02:50]}  Nf6 {[%clk 0:02:39]} 8. Bb3 {[%clk 0:02:50]}  d5 {[%clk 0:02:33]} 9. e5 {[%clk 0:02:50]}  Nd7 {[%clk 0:02:33]} 10. d3 {[%clk 0:02:48]}  Nc5 {[%clk 0:02:29]} 11. O-O {[%clk 0:02:44]}  a5 {[%clk 0:02:26]} 12. a3 {[%clk 0:02:11]}  Nxb3 {[%clk 0:02:23]} 13. cxb3 {[%clk 0:02:12]}  Qb6 {[%clk 0:02:17]} 14. Nd2 {[%clk 0:02:11]}  Be7 {[%clk 0:02:16]} 15. Nf3 {[%clk 0:02:09]}  Bd7 {[%clk 0:02:04]} 16. Kh1 {[%clk 0:02:08]}  O-O {[%clk 0:02:00]} 17. Nxd4 {[%clk 0:02:06]}  Rac8 {[%clk 0:01:49]} 18. Be3 {[%clk 0:02:04]}  Bc5 {[%clk 0:01:44]} 19. Qf2 {[%clk 0:02:04]}  Bb5 {[%clk 0:01:32]} 20. Rad1 {[%clk 0:02:00]}  g6 {[%clk 0:01:26]} 21. h4 {[%clk 0:01:58]}  h5 {[%clk 0:01:23]} 22. g4 {[%clk 0:01:57]}  hxg4 {[%clk 0:01:22]} 23. Rg1 {[%clk 0:01:57]}  Kg7 {[%clk 0:01:20]} 24. Rxg4 {[%clk 0:01:56]}  Rh8 {[%clk 0:01:20]} 25. f5 {[%clk 0:01:55]}  exf5 {[%clk 0:01:05]} 26. Nxf5+ {[%clk 0:01:54]}  Kf8 {[%clk 0:01:03]} 27. Bxc5+ {[%clk 0:01:55]}  Qxc5 {[%clk 0:01:00]} 28. Nd4 {[%clk 0:01:55]}  Qe7 {[%clk 0:00:58]} 29. Nxb5 {[%clk 0:01:47]}  Qd7 {[%clk 0:00:53]} 30. Rf1 {[%clk 0:01:38]}  Rh7 {[%clk 0:00:52]} 31. Rxg6 {[%clk 0:01:22]}  Qxb5 {[%clk 0:00:51]} 32. Qg3 {[%clk 0:01:21]}  Re8 {[%clk 0:00:20]} 33. Qg5 {[%clk 0:01:09]}  Rh8 {[%clk 0:00:19]} 34. Rxf7+ {[%clk 0:01:07]}  Kxf7 {[%clk 0:00:20]} 35. Qf6# {[%clk 0:01:07]} 1-0


[Site "https://www.chess.com"]

[Event "Titled Tuesday Blitz May 17 Early 2022"]
[White "Liyanage, Ranindu Dilshan"]
[Black "Mitrabha, Guha"]
[WhiteFideId "9915834"]
[BlackFideId "5057000"]
[WhiteElo "1858"]
[BlackElo "2468"]
[Result "1-0"]
[Round "05"]
[TimeControl "180+1"]
[Date "2022.05.17"]
[WhiteClock "0:00:14"]
[BlackClock "0:00:02"]

1. d4 {[%clk 0:02:59]}  Nf6 {[%clk 0:02:51]} 2. Nc3 {[%clk 0:02:59]}  d5 {[%clk 0:02:49]} 3. Bf4 {[%clk 0:02:59]}  a6 {[%clk 0:02:48]} 4. e3 {[%clk 0:02:59]}  c5 {[%clk 0:02:48]} 5. dxc5 {[%clk 0:02:49]}  Nc6 {[%clk 0:02:45]} 6. Nf3 {[%clk 0:02:46]}  Bg4 {[%clk 0:02:42]} 7. Be2 {[%clk 0:02:25]}  e6 {[%clk 0:02:34]} 8. Na4 {[%clk 0:02:22]}  Bxc5 {[%clk 0:02:32]} 9. Nxc5 {[%clk 0:02:22]}  Qa5+ {[%clk 0:02:31]} 10. c3 {[%clk 0:02:23]}  Qxc5 {[%clk 0:02:31]} 11. Ne5 {[%clk 0:02:18]}  Bxe2 {[%clk 0:02:28]} 12. Qxe2 {[%clk 0:02:19]}  O-O {[%clk 0:02:27]} 13. O-O {[%clk 0:02:17]}  h6 {[%clk 0:02:25]} 14. Rfd1 {[%clk 0:02:14]}  Rfd8 {[%clk 0:02:24]} 15. Qf3 {[%clk 0:02:08]}  Ne4 {[%clk 0:02:23]} 16. Qg4 {[%clk 0:01:32]}  Kf8 {[%clk 0:02:10]} 17. Nd3 {[%clk 0:01:25]}  Qe7 {[%clk 0:02:09]} 18. Qh3 {[%clk 0:01:21]}  e5 {[%clk 0:02:05]} 19. Bg3 {[%clk 0:01:17]}  Nf6 {[%clk 0:02:03]} 20. Bh4 {[%clk 0:01:10]}  g5 {[%clk 0:02:01]} 21. Bg3 {[%clk 0:01:10]}  Kg7 {[%clk 0:02:00]} 22. f4 {[%clk 0:01:06]}  e4 {[%clk 0:01:36]} 23. Ne5 {[%clk 0:01:01]}  Qe6 {[%clk 0:01:30]} 24. f5 {[%clk 0:00:46]}  Qe7 {[%clk 0:01:27]} 25. Ng4 {[%clk 0:00:46]}  Nxg4 {[%clk 0:01:24]} 26. Qxg4 {[%clk 0:00:47]}  Qf6 {[%clk 0:01:23]} 27. h4 {[%clk 0:00:45]}  Rd7 {[%clk 0:01:12]} 28. Rd2 {[%clk 0:00:44]}  Ne7 {[%clk 0:01:06]} 29. hxg5 {[%clk 0:00:41]}  hxg5 {[%clk 0:01:01]} 30. Rf1 {[%clk 0:00:37]}  Rg8 {[%clk 0:00:59]} 31. Rd4 {[%clk 0:00:29]}  Kf8 {[%clk 0:00:55]} 32. c4 {[%clk 0:00:23]}  Kg7 {[%clk 0:00:05]} 33. cxd5 {[%clk 0:00:21]}  Nxd5 {[%clk 0:00:05]} 34. Qxe4 {[%clk 0:00:17]}  Qc6 {[%clk 0:00:03]} 35. Rfd1 {[%clk 0:00:16]}  Re8 {[%clk 0:00:02]} 36. Qxe8 {[%clk 0:00:14]} 1-0


[Site "https://www.chess.com"]